bitfinex/quotes_BTCUSD_20250115
["timestamp","ask_amount","ask_price","bid_price","bid_amount"]
[1736939352445,0.27267577,96910.0,96909.0,4.962e-05]
[1736939352649,0.28167577,96910.0,96909.0,4.962e-05]
[1736939352861,0.27267577,96910.0,96909.0,4.962e-05]
[1736939353178,0.28167577,96910.0,96909.0,4.962e-05]
[1736939353388,0.27348833,96910.0,96909.0,0.09716827]
[1736939353705,0.27767577,96910.0,96909.0,0.00621021]
[1736939353860,0.28167577,96910.0,96909.0,0.00621021]
[1736939354074,0.28167577,96910.0,96909.0,0.00090412]
[1736939354304,0.27767577,96910.0,96909.0,0.00090412]
[1736939354505,0.17344885,96910.0,96909.0,0.00090412]
[1736939354853,0.16726141,96910.0,96909.0,0.09271668]
[1736939355068,0.17544885,96910.0,96909.0,0.00090412]
[1736939355268,0.17544885,96910.0,96909.0,0.00621021]
[1736939355425,0.17626141,96910.0,96909.0,0.09271668]
[1736939355622,0.16644885,96910.0,96909.0,0.00090412]
[1736939355827,0.15826141,96910.0,96909.0,0.09802277]
[1736939356075,0.16526141,96910.0,96909.0,0.09271668]
[1736939356229,0.00818744,96921.0,96909.0,0.15124188]
[1736939356441,0.00818744,96926.0,96910.0,0.08263183]
[1736939356645,0.00818744,96926.0,96911.0,0.0816]
[1736939356849,0.00818744,96926.0,96911.0,0.08682022]
[1736939357230,0.004,96921.0,96911.0,0.08682022]
[1736939357439,0.004,96921.0,96912.0,0.0161364]
[1736939357633,0.004,96921.0,96912.0,0.0213566]
[1736939357842,0.00818744,96926.0,96912.0,0.0213566]
[1736939358049,0.01118744,96926.0,96912.0,0.0213566]
[1736939358263,0.01118744,96926.0,96912.0,0.0161364]
[1736939358475,0.01118744,96926.0,96913.0,0.01446405]
[1736939358678,0.00818744,96926.0,96913.0,0.01968423]
[1736939359087,0.01618744,96926.0,96913.0,0.01968423]
[1736939359324,0.00818744,96926.0,96913.0,0.01968423]
[1736939359726,0.01518744,96926.0,96913.0,0.02068423]
[1736939359920,0.001,96921.0,96914.0,0.01491884]
[1736939360345,0.001,96921.0,96915.0,0.00522015]
[1736939360573,0.01518744,96926.0,96915.0,0.00522015]
[1736939360762,0.00818744,96926.0,96915.0,0.00522015]
[1736939360962,0.01018744,96926.0,96915.0,0.00522015]
[1736939361307,0.00818744,96925.0,96915.0,0.00522015]
[1736939361636,0.00818744,96925.0,96915.0,0.01337243]
[1736939361871,0.00818744,96925.0,96916.0,0.00522013]
[1736939362072,0.00818744,96925.0,96913.0,0.001]
[1736939362271,0.00818744,96925.0,96911.0,0.0816]
[1736939362272,0.00818744,96925.0,96917.0,0.00522011]
[1736939362473,0.00818744,96925.0,96911.0,0.0816]
[1736939362677,0.01518744,96925.0,96918.0,0.0052201]
[1736939362871,0.00818744,96925.0,96911.0,0.0816]
[1736939363099,0.00818744,96925.0,96919.0,0.00522008]
[1736939363263,0.01518744,96925.0,96913.0,0.001]
[1736939363465,0.01018744,96925.0,96920.0,0.00522006]
[1736939363682,0.01018744,96925.0,96912.0,0.01285041]
[1736939363889,0.01518744,96925.0,96921.0,0.0051584]
[1736939364089,0.01518744,96925.0,96918.0,0.001]
[1736939364284,0.01718744,96925.0,96918.0,0.001]
[1736939364680,0.01518744,96925.0,96918.0,0.001]
[1736939364880,0.01718744,96925.0,96918.0,0.001]
[1736939365120,0.01018744,96925.0,96912.0,0.01285041]
[1736939365434,0.01618744,96925.0,96913.0,0.01929279]
[1736939365653,0.01018744,96925.0,96913.0,0.01929279]
[1736939366088,0.01618744,96925.0,96913.0,0.01929279]
[1736939366266,0.00818744,96925.0,96913.0,0.01929279]
[1736939366480,0.01018744,96925.0,96913.0,0.01929279]
[1736939366651,0.01618744,96925.0,96914.0,0.01486518]
[1736939367069,0.01418744,96925.0,96915.0,0.0051573]
[1736939367269,0.01618744,96925.0,96915.0,0.0051573]
[1736939368219,0.01618744,96925.0,96916.0,0.0778]
[1736939368416,0.01418744,96925.0,96916.0,0.0778]
[1736939368618,0.01418744,96925.0,96917.0,0.00986774]
[1736939368817,0.00818744,96925.0,96917.0,0.00986774]
[1736939369021,0.01418744,96925.0,96917.0,0.01494567]
[1736939369377,0.00818744,96925.0,96917.0,0.01494567]
[1736939369615,0.01318744,96925.0,96917.0,0.01494567]
[1736939369814,0.01018744,96925.0,96918.0,0.00927457]
[1736939370097,0.01018744,96925.0,96918.0,0.0143404]
[1736939370303,0.01318744,96925.0,96918.0,0.0143404]
[1736939370488,0.00818744,96925.0,96918.0,0.0143404]
[1736939370681,0.01018744,96925.0,96918.0,0.0143404]
[1736939371036,0.00818744,96925.0,96919.0,0.00921404]
[1736939371235,0.00818744,96924.0,96919.0,0.01427986]
[1736939371611,0.00818744,96924.0,96919.0,0.00506582]
[1736939372091,0.00818744,96924.0,96916.0,0.0778]
[1736939372302,0.00818744,96924.0,96920.0,0.00506963]
[1736939372506,0.00818744,96924.0,96916.0,0.0778]
[1736939372712,0.01218744,96924.0,96921.0,0.00506941]
[1736939372928,0.00818744,96924.0,96917.0,0.00786549]
[1736939373124,0.00818744,96923.0,96922.0,0.00506939]
[1736939373388,0.00818744,96923.0,96916.0,0.0778]
[1736939373717,0.00818744,96916.0,96910.0,0.0008549]
[1736939374127,0.00818744,96913.0,96910.0,0.0008549]
[1736939374335,0.00818744,96911.0,96910.0,0.0008549]
[1736939375972,0.26241436,96911.0,96910.0,0.0008549]
[1736939376172,0.34751436,96911.0,96910.0,0.0008549]
[1736939377620,0.27241436,96911.0,96910.0,0.0008549]
[1736939378354,0.26941436,96911.0,96910.0,0.0008549]
[1736939378854,0.26241436,96911.0,96910.0,0.0008549]
[1736939379277,0.26941436,96911.0,96910.0,0.0008549]
[1736939379654,0.26241436,96911.0,96910.0,0.0008549]
[1736939379874,0.27241436,96911.0,96910.0,0.0008549]
[1736939380276,0.26941436,96911.0,96910.0,0.0008549]
[1736939380662,0.27241436,96911.0,96910.0,0.0008549]
[1736939381382,0.36451298,96911.0,96910.0,0.0008549]
[1736939381784,0.35451298,96911.0,96910.0,0.0008549]
[1736939382054,0.36151298,96911.0,96910.0,0.0008549]
[1736939382165,0.26941436,96911.0,96910.0,0.0008549]
[1736939383010,0.27241436,96911.0,96910.0,0.0008549]
[1736939383211,0.36451298,96911.0,96910.0,0.0008549]
[1736939383783,0.36151298,96911.0,96910.0,0.0008549]
[1736939384078,0.36451298,96911.0,96910.0,0.0008549]
[1736939384281,0.27241436,96911.0,96910.0,0.0008549]
[1736939384718,0.26941436,96911.0,96910.0,0.0008549]
[1736939385071,0.27655036,96911.0,96910.0,0.0008549]
[1736939385439,0.41469829,96911.0,96910.0,0.0008549]
[1736939385856,0.40769829,96911.0,96910.0,0.0008549]
[1736939386279,0.41569829,96911.0,96910.0,0.0008549]
[1736939386494,0.79938342,96911.0,96910.0,0.0008549]
[1736939386697,0.80238342,96911.0,96910.0,0.0008549]
[1736939387264,0.79938342,96911.0,96910.0,0.0008549]
[1736939387465,0.80238342,96911.0,96910.0,0.0008549]
[1736939387843,0.79138342,96911.0,96910.0,0.0008549]
[1736939388243,0.80138342,96911.0,96910.0,0.0008549]
[1736939388628,0.61018618,96911.0,96910.0,0.0008549]
[1736939388959,0.61818618,96911.0,96910.0,0.0008549]
[1736939389165,0.61018618,96911.0,96910.0,0.0008549]
[1736939389378,0.61718618,96911.0,96910.0,0.0008549]
[1736939389540,0.84443273,96911.0,96910.0,0.0008549]
[1736939389948,0.84743273,96911.0,96910.0,0.0008549]
[1736939390392,0.84443273,96911.0,96910.0,0.0008549]
[1736939390635,0.84743273,96911.0,96910.0,0.0008549]
[1736939391086,0.84043273,96911.0,96910.0,0.0008549]
[1736939391309,0.61198148,96911.0,96910.0,0.0008549]
[1736939391539,0.61898148,96911.0,96910.0,0.0008549]
[1736939391767,0.61598148,96911.0,96910.0,0.0008549]
[1736939392962,0.61898148,96911.0,96910.0,0.0008549]
[1736939393198,0.61198148,96911.0,96910.0,0.0008549]
[1736939393427,0.60898148,96911.0,96910.0,0.0008549]
[1736939394305,0.61198148,96911.0,96910.0,0.0008549]
[1736939394719,0.61598148,96911.0,96910.0,0.0008549]
[1736939394943,0.61198148,96911.0,96910.0,0.0008549]
[1736939395320,0.61998148,96911.0,96910.0,0.0008549]
[1736939395559,0.61198148,96911.0,96910.0,0.0008549]
[1736939395925,0.61898148,96911.0,96910.0,0.0008549]
[1736939396126,0.60898148,96911.0,96910.0,0.0008549]
[1736939396340,0.64355533,96911.0,96910.0,0.0008549]
[1736939396574,0.61998148,96911.0,96910.0,0.0008549]
[1736939396986,0.61698148,96911.0,96910.0,0.0008549]
[1736939397367,0.61998148,96911.0,96910.0,0.0008549]
[1736939397865,0.60898148,96911.0,96910.0,0.0008549]
[1736939398073,0.61698148,96911.0,96910.0,0.0008549]
[1736939398264,0.62098148,96911.0,96910.0,0.0008549]
[1736939398524,0.61298148,96911.0,96910.0,0.0008549]
[1736939398900,0.62098148,96911.0,96910.0,0.0008549]
[1736939399126,0.61298148,96911.0,96910.0,0.0008549]
[1736939399327,0.62198148,96911.0,96910.0,0.0008549]
[1736939399529,0.61798148,96911.0,96910.0,0.0008549]
[1736939400322,0.62098148,96911.0,96910.0,0.0008549]
[1736939400729,0.63875829,96911.0,96910.0,0.0008549]
[1736939400927,0.60898148,96911.0,96910.0,0.0008549]
[1736939401125,0.62198148,96911.0,96910.0,0.0008549]
[1736939401387,0.73211533,96911.0,96910.0,0.0008549]
[1736939401818,0.74111533,96911.0,96910.0,0.0008549]
[1736939402079,0.73211533,96911.0,96910.0,0.0008549]
[1736939402292,0.74111533,96911.0,96910.0,0.0008549]
[1736939402760,0.74111533,96911.0,96901.0,0.0004]
[1736939402761,0.00818744,96902.0,96901.0,0.0004]
[1736939402912,0.26241436,96902.0,96901.0,0.0004]
[1736939403308,0.34697436,96902.0,96901.0,0.0004]
[1736939404124,0.35297436,96902.0,96901.0,0.0004]
[1736939404546,0.34997436,96902.0,96901.0,0.0004]
[1736939404749,0.69661018,96902.0,96901.0,0.0012536]
[1736939405609,0.69061018,96902.0,96901.0,0.0012536]
[1736939406412,0.68761018,96902.0,96901.0,0.0012536]
[1736939406620,0.68961018,96902.0,96901.0,0.0012536]
[1736939407000,0.69461018,96902.0,96901.0,0.0012536]
[1736939407405,0.71061018,96902.0,96901.0,0.0012536]
[1736939407625,0.72061018,96902.0,96901.0,0.0012536]
[1736939407800,0.71361018,96902.0,96901.0,0.0012536]
[1736939408007,0.79088403,96902.0,96901.0,0.0012536]
[1736939408209,0.79688403,96902.0,96901.0,0.0012536]
[1736939408430,0.79288403,96902.0,96901.0,0.0012536]
[1736939408838,0.79988403,96902.0,96901.0,0.0012536]
[1736939409034,0.76531018,96902.0,96873.0,0.06693458]
[1736939409286,0.76531018,96902.0,96873.0,0.06742845]
[1736939409287,0.023,96880.0,96873.0,0.06742845]
[1736939409436,0.02296,96880.0,96874.0,0.00531039]
[1736939411517,0.02296,96880.0,96874.0,0.001]
[1736939412443,0.023,96878.0,96874.0,0.001]
[1736939412675,0.12722692,96878.0,96873.0,0.06742845]
[1736939413362,0.001,96880.0,96873.0,0.07880674]
[1736939413579,0.00818744,96881.0,96873.0,0.07880674]
[1736939414009,0.023,96880.0,96873.0,0.06742845]
[1736939414459,0.024,96880.0,96873.0,0.06742845]
[1736939414802,0.023,96880.0,96873.0,0.06742845]
[1736939415053,0.00818744,96881.0,96873.0,0.00049387]
[1736939415054,0.18552692,96879.0,96873.0,0.00049387]
[1736939415202,0.18552692,96879.0,96848.0,0.0455]
[1736939415203,0.00818744,96862.0,96842.0,0.00073693]
[1736939415450,0.45277981,96862.0,96842.0,0.00073693]
[1736939415655,0.00818744,96845.0,96842.0,0.00073693]
[1736939415826,0.15,96844.0,96838.0,0.15870386]
[1736939416027,0.00758924,96839.0,96838.0,0.15870386]
[1736939416226,0.37899423,96839.0,96838.0,0.15870386]
[1736939416477,0.15758924,96839.0,96838.0,0.15870386]
[1736939416804,0.15808378,96839.0,96838.0,0.15870386]
[1736939417630,0.00149454,96839.0,96838.0,0.15870386]
[1736939417806,0.00149454,96839.0,96838.0,0.23540386]
[1736939417947,0.00449454,96839.0,96838.0,0.23540386]
[1736939418144,0.00349454,96839.0,96838.0,0.25894425]
[1736939418608,0.00449454,96839.0,96838.0,0.25894425]
[1736939418967,0.00449454,96839.0,96838.0,0.26924962]
[1736939419165,0.00449454,96839.0,96838.0,0.37347654]
[1736939419599,0.00149454,96839.0,96838.0,0.37347654]
[1736939419920,0.00249454,96839.0,96838.0,0.37347654]
[1736939420914,0.00249454,96839.0,96838.0,0.37807298]
[1736939421125,0.00249454,96839.0,96838.0,0.52447298]
[1736939422615,0.00249454,96839.0,96838.0,0.61688374]
[1736939423348,0.00049454,96839.0,96838.0,0.61788374]
[1736939423549,0.00149454,96839.0,96838.0,0.61788374]
[1736939423730,0.00149454,96839.0,96838.0,0.61688374]
[1736939423933,0.00049454,96839.0,96838.0,0.61688374]
[1736939424149,0.00049454,96839.0,96838.0,0.61788374]
[1736939424351,0.00149454,96839.0,96838.0,0.61788374]
[1736939425403,0.00149454,96839.0,96838.0,0.42547298]
[1736939425603,0.00149454,96839.0,96838.0,0.40193259]
[1736939426623,0.00149454,96839.0,96838.0,0.49334335]
[1736939426973,0.00149454,96839.0,96838.0,0.40193259]
[1736939427097,0.00049454,96839.0,96838.0,0.40193259]
[1736939427499,0.00149454,96839.0,96838.0,0.40493259]
[1736939427749,0.00143812,96839.0,96838.0,0.46466692]
[1736939427919,0.00143812,96839.0,96838.0,0.36044]
[1736939428137,0.00143812,96839.0,96838.0,0.35013463]
[1736939428386,0.00143812,96839.0,96838.0,0.2904003]
[1736939428780,0.00143812,96839.0,96838.0,0.2912545]
[1736939428975,0.00143812,96839.0,96838.0,0.1681545]
[1736939429925,0.02343812,96839.0,96838.0,0.1641545]
[1736939430232,0.02343812,96839.0,96838.0,0.1661545]
[1736939430443,0.02343812,96839.0,96838.0,0.1671545]
[1736939430655,3.812e-05,96839.0,96838.0,0.1671545]
[1736939430879,3.812e-05,96839.0,96838.0,0.1661545]
[1736939431320,3.812e-05,96839.0,96838.0,0.1641545]
[1736939431747,0.00103812,96839.0,96838.0,0.1641545]
[1736939432586,0.00862736,96839.0,96838.0,0.1641545]
[1736939433024,0.00762736,96839.0,96838.0,0.1641545]
[1736939433208,0.00862736,96839.0,96838.0,0.1641545]
[1736939433914,0.03162736,96839.0,96838.0,0.1641545]
[1736939434138,0.03062736,96839.0,96838.0,0.1641545]
[1736939434365,0.03462736,96839.0,96838.0,0.1641545]
[1736939434607,0.03162736,96839.0,96838.0,0.1641545]
[1736939435334,0.03162736,96839.0,96838.0,0.15955806]
[1736939435817,0.03162736,96839.0,96838.0,0.16435763]
[1736939436192,0.03062736,96839.0,96838.0,0.16435763]
[1736939436446,0.02603812,96839.0,96838.0,0.16435763]
[1736939437050,0.02703812,96839.0,96838.0,0.16435763]
[1736939437205,3.812e-05,96839.0,96838.0,0.16435763]
[1736939437627,0.00203812,96839.0,96838.0,0.16435763]
[1736939438075,0.01062736,96839.0,96838.0,0.16435763]
[1736939438511,0.00303812,96839.0,96838.0,0.16435763]
[1736939439493,3.812e-05,96839.0,96838.0,0.16435763]
[1736939440134,3.812e-05,96839.0,96838.0,0.18079339]
[1736939440344,0.00203812,96839.0,96838.0,0.18079339]
[1736939440549,3.812e-05,96839.0,96838.0,0.16435763]
[1736939440755,0.00183194,96839.0,96838.0,0.16435763]
[1736939441088,0.00283194,96839.0,96838.0,0.16435763]
[1736939442476,0.00483194,96839.0,96838.0,0.16435763]
[1736939442671,0.00183194,96839.0,96838.0,0.16435763]
[1736939443093,0.00283194,96839.0,96838.0,0.16435763]
[1736939443717,0.00483194,96839.0,96838.0,0.16435763]
[1736939443904,0.00583194,96839.0,96838.0,0.16435763]
[1736939444154,0.00583194,96839.0,96838.0,0.18079339]
[1736939444371,0.00483194,96839.0,96838.0,0.16435763]
[1736939444516,0.00183194,96839.0,96838.0,0.16435763]
[1736939444948,0.00183194,96839.0,96838.0,0.24665763]
[1736939445415,0.00183194,96839.0,96838.0,0.36122829]
[1736939445863,0.00283194,96839.0,96838.0,0.36122829]
[1736939446073,0.00283194,96839.0,96838.0,0.42366171]
[1736939446494,0.00383194,96839.0,96838.0,0.42366171]
[1736939446710,0.00183194,96839.0,96838.0,0.42366171]
[1736939446913,0.00183194,96839.0,96838.0,0.51707247]
[1736939447120,0.00183194,96839.0,96838.0,0.51907247]
[1736939447330,0.00183194,96839.0,96838.0,0.51807247]
[1736939447568,0.00183194,96839.0,96838.0,0.61607247]
[1736939447775,0.00283194,96839.0,96838.0,0.62007247]
[1736939448390,0.00283194,96839.0,96838.0,0.46136861]
[1736939449686,0.00183194,96839.0,96838.0,0.45736861]
[1736939450052,0.00183194,96839.0,96838.0,0.45836861]
[1736939450254,0.00183194,96839.0,96838.0,0.46036861]
[1736939450457,0.00183194,96839.0,96838.0,0.45736861]
[1736939450663,0.00183194,96839.0,96838.0,0.46036861]
[1736939450864,0.00283194,96839.0,96838.0,0.46136861]
[1736939451106,0.00283194,96839.0,96838.0,0.45836861]
[1736939451288,0.00283194,96839.0,96838.0,0.45736861]
[1736939451539,0.00383194,96839.0,96838.0,0.46036861]
[1736939451747,0.00383194,96839.0,96838.0,0.46136861]
[1736939452767,0.00183194,96839.0,96838.0,0.45836861]
[1736939453226,0.00283194,96839.0,96838.0,0.46436861]
[1736939453644,0.00183194,96839.0,96838.0,0.45736861]
[1736939453869,0.00183194,96839.0,96838.0,0.45936861]
[1736939454287,0.00183194,96839.0,96838.0,0.46536861]
[1736939454288,0.00283194,96839.0,96838.0,0.46536861]
[1736939454496,0.00283194,96839.0,96838.0,0.46336861]
[1736939455128,0.00283194,96839.0,96838.0,0.46636861]
[1736939455789,0.00183194,96839.0,96838.0,0.46036861]
[1736939456177,0.00283194,96839.0,96838.0,0.46636861]
[1736939456403,0.00283194,96839.0,96838.0,0.46036861]
[1736939456776,0.00383194,96839.0,96838.0,0.46636861]
[1736939457031,0.00383194,96839.0,96838.0,0.61636861]
[1736939457593,0.00179382,96879.0,96838.0,0.61636861]
[1736939457594,0.023,96878.0,96847.0,0.19241076]
[1736939457793,0.023,96878.0,96850.0,0.12308749]
[1736939457972,0.023,96878.0,96851.0,0.10422692]
[1736939458191,0.023,96876.0,96851.0,0.10887572]
[1736939459471,0.03058924,96866.0,96851.0,0.0046488]
[1736939459655,0.023,96864.0,96851.0,0.0046488]
[1736939459914,0.023,96862.0,96851.0,0.001]
[1736939460103,0.173,96862.0,96851.0,0.001]
[1736939460318,0.023,96860.0,96851.0,0.001]
[1736939460801,0.023,96860.0,96840.0,0.12308749]
[1736939461004,0.023,96860.0,96841.0,0.0134362]
[1736939461221,0.023,96860.0,96841.0,0.01808516]
[1736939461454,0.003,96862.0,96850.0,0.12308749]
[1736939461680,0.001,96860.0,96853.0,0.09241076]
[1736939461913,0.001,96860.0,96859.0,0.09241076]
[1736939462123,0.001,96860.0,96859.0,0.28856467]
[1736939462341,0.001,96860.0,96859.0,0.41366491]
[1736939462551,0.001,96860.0,96859.0,0.56366491]
[1736939462776,0.004,96860.0,96859.0,0.64066491]
[1736939463402,0.003,96860.0,96859.0,0.64066491]
[1736939463617,0.09197267,96883.0,96874.0,0.09241076]
[1736939463820,0.09197267,96883.0,96875.0,0.00924108]
[1736939464028,0.09197267,96883.0,96875.0,0.01394368]
[1736939464229,0.09197267,96898.0,96875.0,0.01394368]
[1736939464468,0.09197267,96898.0,96876.0,0.00103206]
[1736939464927,0.09197267,96898.0,96877.0,0.00470256]
[1736939465375,0.00279382,96879.0,96877.0,0.00470256]
[1736939466029,0.00579382,96879.0,96877.0,0.00470256]
[1736939466230,0.00279382,96879.0,96877.0,0.00470256]
[1736939466439,0.00279382,96879.0,96876.0,0.0001478]
[1736939466655,0.00279382,96879.0,96878.0,0.00450439]
[1736939466867,0.00279382,96879.0,96877.0,0.00450441]
[1736939466868,0.00179382,96879.0,96877.0,0.00450441]
[1736939467075,0.00279382,96879.0,96878.0,0.00450439]
[1736939467298,0.00479382,96879.0,96878.0,0.00450439]
[1736939467503,0.00379382,96879.0,96876.0,0.0001478]
[1736939467707,0.00379382,96879.0,96878.0,0.00450439]
[1736939467922,0.00379382,96879.0,96876.0,0.0001478]
[1736939468141,0.00379382,96879.0,96878.0,0.00450439]
[1736939468419,0.00379382,96879.0,96876.0,0.0001478]
[1736939468627,0.00479382,96879.0,96876.0,0.0001478]
[1736939469482,0.00579382,96879.0,96876.0,0.0001478]
[1736939469691,0.00279382,96879.0,96876.0,0.0001478]
[1736939469904,0.00179382,96879.0,96876.0,0.0001478]
[1736939470113,0.00579382,96879.0,96876.0,0.0001478]
[1736939470554,0.00575382,96879.0,96876.0,0.0001478]
[1736939470989,0.00575382,96879.0,96877.0,0.17962692]
[1736939471200,0.00175382,96879.0,96878.0,0.03825051]
[1736939471412,0.00175382,96879.0,96878.0,0.14698656]
[1736939471625,0.00175382,96879.0,96878.0,0.1459546]
[1736939472046,0.00175382,96879.0,96878.0,0.4716546]
[1736939473116,0.00475382,96879.0,96878.0,0.5214546]
[1736939473528,0.00175382,96879.0,96878.0,0.5214546]
[1736939475054,0.00175382,96879.0,96878.0,0.6214546]
[1736939475234,0.00175382,96879.0,96878.0,0.71386536]
[1736939476107,0.00175382,96879.0,96878.0,1.48356536]
[1736939476731,0.00175382,96879.0,96878.0,1.47905623]
[1736939477575,0.00175382,96879.0,96878.0,1.48605623]
[1736939477786,0.00175382,96879.0,96878.0,1.48105623]
[1736939478006,0.00175382,96879.0,96878.0,1.47905623]
[1736939478214,0.00275382,96879.0,96878.0,1.48805623]
[1736939479344,0.00175382,96879.0,96878.0,1.48305623]
[1736939479763,0.00275382,96879.0,96878.0,1.48805623]
[1736939480197,0.00375382,96879.0,96878.0,1.49305623]
[1736939482064,0.00375382,96879.0,96878.0,1.49905623]
[1736939482406,0.0017953,96911.0,96897.0,0.1]
[1736939482617,0.0017953,96911.0,96900.0,0.12308749]
[1736939482815,0.0017953,96911.0,96901.0,0.10525862]
[1736939483641,0.0027953,96911.0,96901.0,0.10525862]
[1736939484199,0.0017953,96911.0,96901.0,0.10525862]
[1736939484411,0.0027953,96911.0,96901.0,0.10525862]
[1736939484637,0.0027953,96911.0,96902.0,0.06737997]
[1736939484815,0.0027953,96911.0,96903.0,0.10525862]
[1736939485565,0.0017953,96911.0,96903.0,0.10525862]
[1736939485982,0.0027953,96911.0,96903.0,0.10422692]
[1736939487053,0.0027953,96911.0,96904.0,0.3257]
[1736939487282,0.0027953,96911.0,96905.0,0.18141157]
[1736939489159,0.0017953,96911.0,96905.0,0.18141157]
[1736939489588,0.0027953,96911.0,96905.0,0.18141157]
[1736939489691,0.0027953,96911.0,96906.0,0.0010317]
[1736939489905,0.0027953,96911.0,96907.0,0.10422692]
[1736939490118,0.0027953,96911.0,96908.0,0.3885973]
[1736939490330,0.0027953,96911.0,96909.0,0.20422692]
[1736939490554,0.0017953,96911.0,96910.0,0.50183157]
[1736939490777,0.0017953,96911.0,96910.0,0.60502692]
[1736939491016,0.0017953,96925.0,96924.0,0.51811076]
[1736939491256,0.0017953,96925.0,96924.0,0.74924876]
[1736939491461,0.0017953,96925.0,96924.0,0.656838]
[1736939491871,0.0017953,96925.0,96924.0,0.74924876]
[1736939492082,0.0017953,96925.0,96924.0,0.656838]
[1736939492332,0.00167107,96925.0,96924.0,0.74924876]
[1736939493366,0.00367107,96925.0,96924.0,0.656838]
[1736939493793,0.00467107,96925.0,96924.0,0.74924876]
[1736939494175,0.00467107,96925.0,96924.0,0.75938072]
[1736939494533,0.00367107,96925.0,96924.0,0.75938072]
[1736939495322,0.00167107,96925.0,96924.0,0.75938072]
[1736939495679,0.00367107,96925.0,96924.0,0.66696996]
[1736939495891,0.00367107,96925.0,96924.0,0.75938072]
[1736939496343,0.00367107,96925.0,96924.0,0.76138072]
[1736939497753,0.00367107,96925.0,96924.0,0.49386996]
[1736939497994,0.00367107,96925.0,96924.0,0.37951108]
[1736939498218,0.04877107,96925.0,96924.0,0.3277]
[1736939498769,0.04677107,96925.0,96924.0,0.001]
[1736939498998,0.04677107,96925.0,96924.0,0.002]
[1736939499241,0.04677107,96925.0,96907.0,0.01007987]
[1736939499479,0.05077107,96925.0,96924.0,0.001]
[1736939499938,0.05077107,96925.0,96908.0,0.10422692]
[1736939500137,0.05677107,96925.0,96909.0,0.01966377]
[1736939500382,0.04977107,96925.0,96909.0,0.12389069]
[1736939500844,0.04677107,96925.0,96909.0,0.12389069]
[1736939501071,0.04777107,96925.0,96909.0,0.12389069]
[1736939501477,0.04777107,96925.0,96924.0,0.0008534]
[1736939501683,0.05477107,96925.0,96924.0,0.0008534]
[1736939501982,0.04777107,96925.0,96924.0,0.0008534]
[1736939502428,0.05277107,96925.0,96924.0,0.0008534]
[1736939502633,0.05477107,96925.0,96924.0,0.0008534]
[1736939502840,0.06177107,96925.0,96924.0,0.0018534]
[1736939503044,0.05977107,96925.0,96924.0,0.0018534]
[1736939503248,0.04677107,96925.0,96924.0,0.0008534]
[1736939503430,0.05477107,96925.0,96924.0,0.0008534]
[1736939506439,0.00967107,96925.0,96924.0,0.0008534]
[1736939507924,0.00967107,96925.0,96909.0,0.12389069]
[1736939508130,0.00967107,96925.0,96910.0,0.11671916]
[1736939508971,0.00767107,96925.0,96910.0,0.11671916]
[1736939509177,0.00367107,96925.0,96910.0,0.11671916]
[1736939509591,0.00767107,96925.0,96910.0,0.11671916]
[1736939510005,0.00967107,96925.0,96910.0,0.11671916]
[1736939510136,0.00967107,96925.0,96911.0,0.01465293]
[1736939510321,0.00967107,96925.0,96911.0,0.11887985]
[1736939511268,0.00367107,96925.0,96911.0,0.11887985]
[1736939511480,0.00167107,96925.0,96911.0,0.11887985]
[1736939511673,0.00767107,96925.0,96911.0,0.11887985]
[1736939511880,0.00967107,96925.0,96912.0,0.014869]
[1736939512236,0.00967107,96925.0,96913.0,0.10422692]
[1736939512865,0.00767107,96925.0,96913.0,0.10422692]
[1736939513043,0.00367107,96925.0,96913.0,0.10422692]
[1736939513278,0.00967107,96925.0,96913.0,0.10422692]
[1736939513456,0.00967107,96925.0,96914.0,0.01497595]
[1736939513708,0.00767107,96925.0,96914.0,0.01497595]
[1736939513917,0.00758924,96914.0,96910.0,0.0008534]
[1736939514132,0.023,96911.0,96910.0,0.0008534]
[1736939514341,0.03058924,96911.0,96910.0,0.0008534]
[1736939514549,0.41501616,96911.0,96910.0,0.0008534]
[1736939514966,0.45651778,96911.0,96910.0,0.0008534]
[1736939515966,0.46651778,96911.0,96910.0,0.0018534]
[1736939516190,0.60447678,96911.0,96910.0,0.0018534]
[1736939516392,0.59447678,96911.0,96910.0,0.0008534]
[1736939516771,0.59747678,96911.0,96910.0,0.0008534]
[1736939517264,0.7990881,96911.0,96910.0,0.0008534]
[1736939517493,0.75758648,96911.0,96910.0,0.0008534]
[1736939517697,0.76458648,96911.0,96910.0,0.0008534]
[1736939518367,0.77058648,96911.0,96910.0,0.0008534]
[1736939518573,0.76058648,96911.0,96910.0,0.0008534]
[1736939519022,0.76958648,96911.0,96910.0,0.0008534]
[1736939519234,0.94755344,96911.0,96910.0,0.0008534]
[1736939519439,0.95255344,96911.0,96910.0,0.0008534]
[1736939519861,0.95555344,96911.0,96910.0,0.0008534]
[1736939520271,1.00814048,96911.0,96910.0,0.0008534]
[1736939520491,0.77158648,96911.0,96910.0,0.0003534]
[1736939520729,0.66735956,96911.0,96910.0,0.0003534]
[1736939521309,0.77158648,96911.0,96910.0,0.0003534]
[1736939522768,0.43201616,96911.0,96910.0,0.0003534]
[1736939523659,0.52395291,96911.0,96910.0,0.0003534]
[1736939524593,0.41972599,96911.0,96910.0,0.0003534]
[1736939524782,0.32778924,96911.0,96910.0,0.0003534]
[1736939525448,0.28058924,96911.0,96910.0,0.0003534]
[1736939526511,0.273,96911.0,96910.0,0.0003534]
[1736939526718,0.28058924,96911.0,96910.0,0.0003534]
[1736939527131,0.273,96911.0,96910.0,0.0003534]
[1736939527390,0.28058924,96911.0,96910.0,0.0003534]
[1736939527618,0.19,96911.0,96910.0,0.0003534]
[1736939529017,0.15,96910.0,96885.0,0.00103187]
[1736939529243,0.15,96910.0,96892.0,0.0001478]
[1736939529463,0.00758924,96896.0,96892.0,0.0001478]
[1736939529686,0.27308749,96910.0,96892.0,0.0001478]
[1736939529891,0.033,96911.0,96892.0,0.0001478]
[1736939530113,0.00758924,96896.0,96892.0,0.0001478]
[1736939531469,0.00754924,96896.0,96892.0,0.0001478]
[1736939532438,0.00854924,96896.0,96892.0,0.0001478]
[1736939532847,0.00954924,96896.0,96892.0,0.0001478]
[1736939533086,0.00754924,96896.0,96892.0,0.0001478]
[1736939534356,0.00854924,96896.0,96892.0,0.0001478]
[1736939535164,0.00854924,96896.0,96892.0,0.0010014]
[1736939535865,0.00854924,96896.0,96893.0,0.0823]
[1736939535866,0.001,96896.0,96893.0,0.0823]
[1736939536071,0.001,96896.0,96894.0,0.00936204]
[1736939536285,0.001,96896.0,96894.0,0.00833014]
[1736939537471,0.00754924,96901.0,96894.0,0.00833014]
[1736939537872,0.001,96896.0,96894.0,0.00833014]
[1736939538043,0.00754924,96901.0,96894.0,0.00833014]
[1736939538480,0.001,96896.0,96895.0,0.00916315]
[1736939538654,0.001,96896.0,96893.0,0.0823]
[1736939539069,0.00754924,96901.0,96893.0,0.0823]
[1736939539488,0.00754924,96901.0,96892.0,0.0010014]
[1736939539489,0.01154924,96901.0,96892.0,0.0010014]